bitfinex/quotes_ETHUSD_20250415
["timestamp","ask_amount","ask_price","bid_price","bid_amount"]
[1744722951376,12.18872,1640.9,1640.6,6.92079]
[1744722951714,6.09464,1640.8,1640.6,0.8256]
[1744722952068,6.09422,1640.9,1640.6,6.92091]
[1744722952267,6.09422,1640.9,1640.6,13.01614]
[1744722952671,5.327,1641.0,1640.7,6.09485]
[1744722952980,11.42095,1641.0,1640.7,6.09485]
[1744722953180,17.51496,1641.0,1640.7,6.09485]
[1744722953498,11.42095,1641.0,1640.7,12.18967]
[1744722953810,11.42095,1641.0,1640.7,6.09482]
[1744722954107,11.42095,1641.0,1640.7,7.5265464]
[1744722954319,11.42095,1641.0,1640.7,13.6213964]
[1744722955164,17.51504,1641.0,1640.7,7.5265464]
[1744722955704,6.0943,1640.9,1640.6,6.9209]
[1744722955902,12.18868,1640.9,1640.6,6.9209]
[1744722956421,12.18868,1640.9,1640.7,0.35502852]
[1744722958124,6.09458,1640.8,1640.7,0.35502852]
[1744722958327,6.0943,1640.9,1640.7,0.35502852]
[1744722958838,12.18865,1640.9,1640.7,0.35502852]
[1744722959016,6.0943,1640.9,1640.7,0.35502852]
[1744722960028,6.09458,1640.8,1640.7,0.35502852]
[1744722960440,6.0943,1640.9,1640.7,0.35502852]
[1744722960638,19.24321215,1641.1,1640.7,7.20999852]
[1744722960794,6.09401,1641.0,1640.7,1.11512852]
[1744722961139,6.09424,1640.9,1640.7,1.11512852]
[1744722962438,6.09401,1641.0,1640.7,7.21007852]
[1744722962739,6.09401,1641.0,1640.7,13.30502852]
[1744722963346,5.79114913,1641.4,1641.0,6.09356]
[1744722963501,6.09297,1641.3,1640.9,13.0159]
[1744722963701,6.09297,1641.3,1640.9,13.01591]
[1744722963896,6.09314,1641.2,1640.9,6.9218]
[1744722964138,6.09314,1641.2,1640.9,13.01591]
[1744722964338,6.09314,1641.2,1640.9,6.9218]
[1744722964497,6.09314,1641.2,1640.9,13.01589]
[1744722965846,12.18661,1641.2,1640.9,0.8277]
[1744722966026,12.18735,1641.1,1640.9,0.8277]
[1744722966211,13.14913215,1641.2,1640.7,1.12912852]
[1744722966398,6.09396,1641.0,1640.7,7.22398852]
[1744722967240,6.09396,1641.0,1640.7,13.31881852]
[1744722967411,6.09396,1641.0,1640.7,7.22395852]
[1744722967614,6.09396,1641.0,1640.7,13.31878852]
[1744722968739,6.09396,1641.0,1640.7,7.22395852]
[1744722968940,12.18722,1641.1,1640.8,6.09458]
[1744722969238,19.24261215,1641.2,1640.8,6.09449]
[1744722969448,13.14921215,1641.2,1640.8,6.09447]
[1744722969603,6.09351,1641.1,1640.8,6.09447]
[1744722970146,6.09351,1641.1,1640.8,12.18896]
[1744722970300,6.09351,1641.1,1640.8,6.09447]
[1744722970502,12.18719,1641.1,1640.7,13.31882852]
[1744722970701,6.09394,1641.0,1640.7,1.12912852]
[1744722970974,6.09426,1640.9,1640.7,1.12912852]
[1744722971586,12.18863,1640.9,1640.7,1.12912852]
[1744722971743,6.09426,1640.9,1640.7,1.12912852]
[1744722971943,6.09426,1640.9,1640.7,0.35502852]
[1744722972445,6.09458,1640.8,1640.7,0.35502852]
[1744722973170,13.3845706,1640.9,1640.7,0.35502852]
[1744722973388,12.91762,1640.9,1640.7,0.35502852]
[1744722973693,6.09458,1640.8,1640.7,0.35502852]
[1744722973981,11.64900215,1641.0,1640.7,6.44995852]
[1744722973982,17.50993,1641.0,1640.7,6.44995852]
[1744722974185,6.09424,1640.9,1640.7,0.35502852]
[1744722976183,12.18865,1640.9,1640.7,0.35502852]
[1744722976698,6.09424,1640.9,1640.7,0.35502852]
[1744722976901,12.18863,1640.9,1640.7,0.35502852]
[1744722977399,12.18861,1640.9,1640.7,0.35502852]
[1744722977560,6.09424,1640.9,1640.7,0.35502852]
[1744722978073,6.09458,1640.8,1640.7,0.35502852]
[1744722978483,12.18878,1640.9,1640.7,0.35502852]
[1744722978813,6.09424,1640.9,1640.7,0.35502852]
[1744722979113,6.09458,1640.8,1640.7,0.35502852]
[1744722979409,6.09424,1640.9,1640.7,0.35502852]
[1744722979619,6.09423,1640.9,1640.7,0.35502852]
[1744722981196,6.09458,1640.8,1640.7,0.35502852]
[1744722983339,6.82358,1640.8,1640.7,0.35502852]
[1744722984232,12.18865,1640.9,1640.7,0.35502852]
[1744722984429,12.14588,1641.0,1640.7,6.44973852]
[1744722984627,12.14588,1641.0,1640.7,12.54467852]
[1744722984832,6.09312,1641.2,1640.9,6.0942]
[1744722984998,5.323,1641.1,1640.9,6.0942]
[1744722985388,11.41649,1641.1,1640.8,6.92336]
[1744722985923,11.41649,1641.1,1640.8,13.01784]
[1744722986284,17.51017,1641.1,1640.8,6.92336]
[1744722987214,17.51015,1641.1,1640.8,6.92336]
[1744722987429,11.41649,1641.1,1640.8,6.92336]
[1744722987734,11.41649,1641.1,1640.8,14.35514285]
[1744722988330,11.41649,1641.1,1640.8,6.92336]
[1744722989635,17.51012,1641.1,1640.8,6.92336]
[1744722990029,11.41649,1641.1,1640.8,13.01784]
[1744722990236,11.41649,1641.1,1640.8,6.92336]
[1744722990525,11.41649,1641.1,1640.8,13.01784]
[1744722990731,11.41649,1641.1,1640.8,6.92336]
[1744722991234,11.41649,1641.1,1640.8,13.01784]
[1744722992839,17.5101,1641.1,1640.8,6.92336]
[1744722993330,11.41649,1641.1,1640.8,6.92336]
[1744722993527,17.51018,1641.1,1640.8,6.92336]
[1744722993839,5.323,1641.1,1641.0,6.09384]
[1744722993993,5.323,1641.1,1640.9,6.09406]
[1744722994186,6.0931,1641.2,1640.9,6.09406]
[1744722994615,12.18641,1641.2,1640.9,6.09406]
[1744722995137,6.0931,1641.2,1640.9,12.18816]
[1744722995613,6.0931,1641.2,1640.9,6.09406]
[1744722995809,12.18633,1641.2,1640.9,6.09406]
[1744722996345,6.0931,1641.2,1640.9,12.18817]
[1744722997140,6.0931,1641.2,1640.9,12.18816]
[1744722997348,12.18649,1641.2,1640.9,6.09406]
[1744722997509,6.0931,1641.2,1640.9,6.09406]
[1744722997849,12.18637,1641.2,1640.9,6.09406]
[1744722998007,12.18644,1641.2,1640.9,6.09406]
[1744722998646,12.14382,1641.3,1640.9,6.6441]
[1744722998842,12.18634,1641.2,1640.9,6.6441]
[1744722999433,6.09311,1641.2,1640.9,6.6441]
[1744722999631,12.18635,1641.2,1640.9,6.6441]
[1744723000151,0.729,1641.0,1640.7,0.35502852]
[1744723000345,6.09452,1640.9,1640.7,0.35502852]
[1744723000538,6.09458,1640.8,1640.7,0.35502852]
[1744723001045,6.776872,1640.9,1640.7,0.35502852]
[1744723001851,12.871292,1640.9,1640.7,0.35502852]
[1744723002652,6.09458,1640.8,1640.7,0.35502852]
[1744723019495,13.15058215,1640.8,1640.7,0.35502852]
[1744723019696,14.6663075,1640.8,1640.7,8.52e-06]
[1744723019894,23.62425129,1640.8,1640.7,8.52e-06]
[1744723020199,31.02150503,1640.8,1640.7,8.52e-06]
[1744723020895,24.39270402,1640.8,1640.7,8.52e-06]
[1744723021102,28.26985477,1640.8,1640.7,8.52e-06]
[1744723021407,29.0383075,1640.8,1640.7,8.52e-06]
[1744723025070,19.94785477,1640.8,1640.7,8.52e-06]
[1744723025275,19.22085477,1640.8,1640.7,8.52e-06]
[1744723027105,19.9893075,1640.8,1640.7,8.52e-06]
[1744723027409,29.99270617,1640.8,1640.7,8.52e-06]
[1744723028280,23.66570402,1640.8,1640.7,8.52e-06]
[1744723028485,22.9893075,1640.8,1640.7,8.52e-06]
[1744723029879,29.0393075,1640.8,1640.7,8.52e-06]
[1744723030411,29.71570402,1640.8,1640.7,8.52e-06]
[1744723033211,28.27085477,1640.8,1640.7,8.52e-06]
[1744723033513,22.94785477,1640.8,1640.7,8.52e-06]
[1744723033716,23.79258215,1640.8,1640.7,8.52e-06]
[1744723034019,17.46558,1640.8,1640.7,8.52e-06]
[1744723034194,11.41558,1640.8,1640.7,8.52e-06]
[1744723035717,18.47158215,1640.8,1640.7,8.52e-06]
[1744723035901,19.24003488,1640.8,1640.7,8.52e-06]
[1744723036806,22.24003488,1640.8,1640.7,8.52e-06]
[1744723037518,33.88803703,1640.8,1640.7,8.52e-06]
[1744723037819,35.29343355,1640.8,1640.7,8.52e-06]
[1744723038200,6.09681,1640.2,1640.1,0.8806]
[1744723038520,6.09681,1640.2,1640.1,0.05]
[1744723038713,6.55200516,1640.2,1640.1,0.05]
[1744723040097,7.28100516,1640.2,1640.1,0.05]
[1744723043640,6.55200516,1640.2,1640.1,0.05]
[1744723044017,11.87400516,1640.2,1640.1,0.05]
[1744723046677,11.87400516,1640.2,1640.1,0.33061517]
[1744723046983,13.37145789,1640.2,1640.1,0.33061517]
[1744723047679,11.87400516,1640.2,1640.1,0.33061517]
[1744723049680,11.41881,1640.2,1640.1,0.33061517]
[1744723050862,6.09681,1640.2,1640.1,0.33061517]
[1744723051044,11.41881,1640.2,1640.1,0.33061517]
[1744723051251,6.09681,1640.2,1640.1,0.33061517]
[1744723051457,11.41881,1640.2,1640.1,0.33061517]
[1744723054799,5.322,1640.2,1640.1,0.33061517]
[1744723055096,6.09681,1640.2,1640.1,1.79021369]
[1744723055284,6.09681,1640.2,1640.1,1.14741517]
[1744723055868,6.09681,1640.2,1640.1,0.33061517]
[1744723058109,6.82581,1640.2,1640.1,0.33061517]
[1744723058669,7.59426273,1640.2,1640.1,0.33061517]
[1744723059114,6.82581,1640.2,1640.1,0.33061517]
[1744723060404,6.09681,1640.2,1640.1,0.33061517]
[1744723064882,6.82581,1640.2,1640.1,0.33061517]
[1744723067690,6.09681,1640.2,1640.1,0.33061517]
[1744723068090,6.09681,1640.2,1640.1,1.11551517]
[1744723073128,17.74458215,1640.3,1640.1,1.11551517]
[1744723073326,12.42286215,1640.5,1640.2,0.7756]
[1744723073534,6.05,1640.7,1640.5,0.7756]
[1744723073843,6.09471,1640.8,1640.6,0.8311]
[1744723074009,15.11526,1640.9,1640.6,0.8311]
[1744723074010,11.41526,1640.9,1640.6,6.92641]
[1744723074212,5.321,1640.9,1640.6,6.92641]
[1744723074532,11.41526,1640.9,1640.7,0.8311]
[1744723075702,17.50964,1640.9,1640.7,0.8311]
[1744723075940,17.50965,1640.9,1640.7,0.8311]
[1744723076150,6.09458,1640.8,1640.7,0.8311]
[1744723076451,17.50965,1640.9,1640.7,0.8311]
[1744723076940,11.41526,1640.9,1640.7,0.8311]
[1744723077244,17.50963,1640.9,1640.7,0.8311]
[1744723077403,12.18865,1640.9,1640.7,0.8311]
[1744723078218,6.09458,1640.8,1640.7,0.8311]
[1744723078746,12.18874,1640.9,1640.7,0.8311]
[1744723079250,12.42091215,1641.0,1640.7,6.92593]
[1744723079455,12.42091215,1641.0,1640.8,0.815]
[1744723079616,18.51495215,1641.0,1640.8,0.815]
[1744723079818,18.51504215,1641.0,1640.8,0.815]
[1744723080022,6.09421,1640.9,1640.8,0.815]
[1744723080335,12.42091215,1641.0,1640.8,0.815]
[1744723080907,6.09421,1640.9,1640.8,0.815]
[1744723081826,18.51507215,1641.0,1640.8,0.815]
[1744723082054,12.42091215,1641.0,1640.8,0.815]
[1744723082252,6.09358,1641.1,1640.8,1.505984]
[1744723082409,29.88337215,1641.2,1640.9,0.815]
[1744723082747,6.09349,1641.1,1640.9,0.815]
[1744723083233,29.88358215,1641.2,1640.9,6.90907]
[1744723083845,17.74019215,1641.2,1640.9,0.815]
[1744723084143,6.09359,1641.1,1640.9,0.815]
[1744723084441,12.18722,1641.1,1640.9,0.815]
[1744723084823,6.09359,1641.1,1640.9,0.815]
[1744723085644,6.32700215,1641.3,1640.9,0.690945]
[1744723085941,6.32700215,1641.3,1640.8,0.06093952]
[1744723085942,6.32700215,1641.3,1641.0,6.85607]
[1744723086253,6.32700215,1641.3,1641.2,0.8281]
[1744723086416,12.41977215,1641.3,1641.2,0.8281]
[1744723089652,18.51273215,1641.3,1641.0,0.8292]
[1744723089834,6.09314,1641.2,1641.0,0.8292]
[1744723090160,6.0942,1641.0,1640.8,0.8292]
[1744723090361,6.09471,1640.8,1640.6,0.8292]
[1744723090513,12.42195215,1640.7,1640.6,0.8292]
[1744723090852,12.42195215,1640.7,1640.4,6.92027]
[1744723090853,12.42205215,1640.7,1640.4,6.92027]
[1744723091018,6.09533,1640.6,1640.4,0.8243]
[1744723091349,12.42205215,1640.7,1640.4,0.8243]
[1744723091549,18.51728215,1640.7,1640.4,6.92032]
[1744723091757,12.42205215,1640.7,1640.4,6.92025]
[1744723094439,18.51720215,1640.7,1640.4,6.92025]
[1744723094940,6.09476,1640.8,1640.6,0.7787]
[1744723095715,12.37700215,1640.9,1640.6,0.7787]
[1744723095916,6.09317,1641.2,1640.8,1.3666]
[1744723096115,6.09317,1641.2,1640.9,6.09399]
[1744723096339,6.09317,1641.2,1640.9,7.449496]
[1744723097076,6.09384,1641.0,1640.8,1.3666]
[1744723097382,12.42057215,1641.1,1640.8,0.8166]
[1744723097660,6.09332,1641.2,1640.9,6.09414]
[1744723097847,6.09332,1641.2,1640.9,12.18821]
[1744723098356,6.0935,1641.1,1640.8,6.91115]
[1744723098555,12.18722,1641.1,1640.8,8.21175]
[1744723098745,6.0935,1641.1,1640.8,8.21175]
[1744723098950,12.18717,1641.1,1640.8,8.21175]
[1744723099464,6.0935,1641.1,1640.8,8.21175]
[1744723099638,6.0935,1641.1,1640.8,14.30615]
[1744723099957,6.09399,1641.0,1640.8,2.1172]
[1744723100327,6.09399,1641.0,1640.8,0.8166]
[1744723100558,12.18797,1641.0,1640.8,0.8166]
[1744723102969,6.09421,1640.9,1640.8,0.8166]
[1744723103341,6.09459,1640.8,1640.6,0.8162]
[1744723103640,6.09421,1640.9,1640.6,6.9115]
[1744723104057,6.09392,1641.0,1640.7,6.09493]
[1744723104263,6.09392,1641.0,1640.7,6.09483]
[1744723104469,6.09392,1641.0,1640.7,12.18966]
[1744723104852,6.09392,1641.0,1640.7,6.09483]
[1744723105369,12.1887,1640.9,1640.6,8.26715]
[1744723105565,12.1887,1640.9,1640.6,2.17191]
[1744723105566,6.09475,1640.8,1640.6,2.17191]
[1744723105869,18.51560215,1640.9,1640.6,0.8162]
[1744723106074,12.42125215,1640.9,1640.6,6.9115]
[1744723106277,18.51563215,1640.9,1640.6,6.9115]
[1744723106898,6.09468,1640.8,1640.6,0.8162]
[1744723107053,6.09495,1640.7,1640.6,0.8162]
[1744723107756,6.09495,1640.7,1640.5,0.7629]
[1744723111029,6.09469,1640.8,1640.5,14.3798279]
[1744723111332,12.18941,1640.8,1640.5,8.2841879]
[1744723112587,6.09497,1640.7,1640.5,0.7629]
[1744723114018,12.1902,1640.7,1640.5,0.7629]
[1744723114396,6.09497,1640.7,1640.5,0.7629]
[1744723115525,12.1896,1640.8,1640.5,6.8585]
[1744723115723,6.09497,1640.7,1640.5,0.7629]
[1744723116027,12.18964,1640.8,1640.5,0.7629]
[1744723117523,12.18964,1640.8,1640.5,6.85858]
[1744723117823,12.18964,1640.8,1640.5,8.154033]
[1744723118838,6.09503,1640.7,1640.5,2.058353]
[1744723119215,12.19025,1640.7,1640.5,2.058353]
[1744723119532,6.09503,1640.7,1640.5,2.058353]
[1744723119828,12.19011,1640.7,1640.5,0.7629]
[1744723120996,6.09503,1640.7,1640.5,0.7629]
[1744723121190,6.32700215,1640.9,1640.1,0.33061517]
[1744723121427,6.09607,1640.4,1640.2,0.7827]
[1744723121821,6.09582,1640.5,1640.2,0.7827]
[1744723122040,12.19176,1640.5,1640.2,7.65553752]
[1744723122552,6.09582,1640.5,1640.2,7.65553752]
[1744723122736,12.19168,1640.5,1640.2,7.65553752]
[1744723125363,12.19169,1640.5,1640.2,7.65553752]
[1744723126972,18.46700215,1640.7,1640.2,1.55874752]
[1744723126973,6.0961,1640.4,1640.2,1.55874752]
[1744723127180,12.19244,1640.4,1640.2,1.55874752]
[1744723127331,12.19244,1640.4,1640.2,0.77604752]
[1744723127532,0.729,1640.4,1640.1,1.69081517]
[1744723127749,6.09657,1640.3,1640.1,1.14081517]
[1744723128265,6.09617,1640.4,1640.1,7.23790517]
[1744723129045,12.19238,1640.4,1640.1,7.23790517]
[1744723129445,6.09617,1640.4,1640.1,7.23790517]
[1744723129646,6.09617,1640.4,1640.1,8.62644769]
[1744723130043,12.1924,1640.4,1640.1,8.62644769]
[1744723130373,6.09617,1640.4,1640.1,8.62644769]
[1744723130733,12.19241,1640.4,1640.1,8.62644769]
[1744723131136,6.09576,1640.5,1640.2,6.09674]
[1744723131366,6.09576,1640.5,1640.2,6.09669]
[1744723131863,6.09576,1640.5,1640.2,12.1934]
[1744723132238,6.09576,1640.5,1640.2,7.43907618]
[1744723133351,6.09576,1640.5,1640.2,13.53579618]
[1744723134178,6.09576,1640.5,1640.2,13.53578618]
[1744723134542,6.045,1640.7,1640.3,6.88857]
[1744723134872,6.09579,1640.5,1640.3,0.7922]
[1744723135380,6.09607,1640.4,1640.3,0.55]
[1744723135689,6.09607,1640.4,1640.1,8.61753769]
[1744723136057,6.09607,1640.4,1640.1,14.71462769]
[1744723136246,6.09607,1640.4,1640.1,8.61753769]
[1744723136545,6.09607,1640.4,1640.1,14.71460769]
[1744723136739,6.09607,1640.4,1640.2,0.23103149]
[1744723136977,12.19163,1640.5,1640.2,6.32784149]
[1744723137887,6.09581,1640.5,1640.2,12.42455149]
[1744723138094,6.09581,1640.5,1640.2,13.91906241]
[1744723138596,12.19091,1640.6,1640.3,6.09641]
[1744723138759,11.41107,1640.7,1640.4,6.09592]
[1744723139283,11.41107,1640.7,1640.4,12.19187]
[1744723139450,11.41107,1640.7,1640.4,6.09592]
[1744723140057,11.41107,1640.7,1640.4,12.19188]
[1744723140900,11.41107,1640.7,1640.4,6.09592]
[1744723141369,17.50626,1640.7,1640.4,6.09592]
[1744723142199,6.09644,1640.3,1640.2,0.23103149]
[1744723142398,12.42344215,1640.3,1640.2,0.23103149]
[1744723142754,13.15244215,1640.3,1640.2,0.23103149]
[1744723142959,6.82544,1640.3,1640.2,0.23103149]
[1744723143158,18.46744215,1640.3,1640.2,0.23103149]
[1744723143375,19.23589488,1640.3,1640.2,0.23103149]
[1744723143568,18.46744215,1640.3,1640.2,0.23103149]
[1744723147415,24.51744215,1640.3,1640.2,0.23103149]
[1744723148312,25.28589488,1640.3,1640.2,0.23103149]
[1744723148482,28.28589488,1640.3,1640.2,0.23103149]
[1744723148865,28.28589488,1640.3,1640.2,1.49e-06]
[1744723151066,28.73480005,1640.3,1640.2,1.49e-06]
[1744723151907,29.03909811,1640.3,1640.2,1.49e-06]
[1744723152406,28.73480005,1640.3,1640.2,1.49e-06]
[1744723152589,27.96634732,1640.3,1640.2,1.49e-06]
[1744723157702,28.73480005,1640.3,1640.2,1.49e-06]
[1744723158472,27.96634732,1640.3,1640.2,1.49e-06]
[1744723159107,17.46144,1640.3,1640.2,1.49e-06]
[1744723159904,6.09583,1640.5,1640.2,6.09681149]
[1744723160104,6.09583,1640.5,1640.3,0.7929]
[1744723160293,11.40942,1640.6,1640.3,7.57820115]
[1744723160497,11.40942,1640.6,1640.3,12.88161115]
[1744723160690,5.314,1640.6,1640.4,0.7929]
[1744723161003,11.40934,1640.6,1640.4,0.7929]
[1744723161507,6.09607,1640.4,1640.2,0.75600149]
[1744723161676,6.09644,1640.3,1640.2,0.75600149]
[1744723161878,13.15140215,1640.6,1640.2,0.75600149]
[1744723161879,6.09579,1640.5,1640.2,0.75600149]
[1744723162189,6.09579,1640.5,1640.2,1.47435116]
[1744723162389,6.09619,1640.4,1640.2,1.47435116]
[1744723162595,12.19184,1640.5,1640.2,1.47435116]
[1744723164410,6.09579,1640.5,1640.2,1.47435116]
[1744723165008,12.19166,1640.5,1640.2,7.57112116]
[1744723165216,12.19166,1640.5,1640.3,0.75711212]
[1744723165797,6.09579,1640.5,1640.3,0.75711212]
[1744723166119,12.19091,1640.6,1640.3,0.75711212]
[1744723166897,6.0959,1640.5,1640.3,0.75711212]
[1744723167098,12.42196215,1640.7,1640.2,1.47435116]
[1744723167304,6.09618,1640.4,1640.2,0.75600149]
[1744723168004,6.09583,1640.5,1640.2,6.85276149]
[1744723168339,6.09583,1640.5,1640.2,12.94944149]
[1744723169717,6.09542,1640.6,1640.3,6.0962]
[1744723169927,6.09542,1640.6,1640.4,0.7789]
[1744723170087,6.0957,1640.5,1640.4,0.7789]
[1744723170283,6.09542,1640.6,1640.4,0.7789]
[1744723170488,12.19097,1640.6,1640.4,0.7789]
[1744723171382,6.09542,1640.6,1640.4,0.7789]
[1744723171587,6.0957,1640.5,1640.4,0.7789]
[1744723172024,6.09542,1640.6,1640.4,0.7789]
[1744723173238,6.0957,1640.5,1640.4,0.7789]
[1744723174634,12.19105,1640.6,1640.4,0.7789]
[1744723175928,6.0957,1640.5,1640.4,0.7789]
[1744723176519,6.09472,1640.8,1640.6,0.8126]
[1744723176732,6.09495,1640.7,1640.6,0.8126]
[1744723177699,12.19024,1640.7,1640.5,0.7635]
[1744723177903,6.09533,1640.6,1640.5,0.7635]
[1744723178436,6.09533,1640.6,1640.4,0.8057]
[1744723179043,12.19087,1640.6,1640.4,0.8057]
[1744723179742,6.09625,1640.4,1640.2,0.80570149]
[1744723179932,6.09644,1640.3,1640.2,0.80570149]
[1744723180637,6.09644,1640.3,1640.2,1.49e-06]
[1744723183343,6.09625,1640.4,1640.2,1.49e-06]
[1744723183552,6.09542,1640.6,1640.3,6.92688]
[1744723183847,6.09542,1640.6,1640.3,13.02331]
[1744723184211,12.1909,1640.6,1640.3,0.8306]
[1744723185636,12.19093,1640.6,1640.3,6.92702]
[1744723185838,12.19092,1640.6,1640.3,6.92702]
[1744723186038,6.09502,1640.7,1640.4,6.788402]
[1744723186244,6.09559,1640.6,1640.4,0.55]
[1744723186545,12.19107,1640.6,1640.4,0.55]
[1744723186720,6.09548,1640.6,1640.4,0.55]
[1744723187420,12.19095,1640.6,1640.4,0.55]
[1744723188329,6.09587,1640.5,1640.3,0.8306]
[1744723188535,6.09585,1640.5,1640.3,1.65046962]
[1744723189028,6.09585,1640.5,1640.3,0.8306]
[1744723189813,6.0954,1640.6,1640.3,6.92702]
[1744723190015,12.19086,1640.6,1640.3,6.92693]
[1744723190646,12.19183,1640.5,1640.3,0.8306]
[1744723190946,6.09579,1640.5,1640.3,0.8306]
[1744723191142,12.19181,1640.5,1640.3,0.8306]
[1744723191532,6.09607,1640.4,1640.3,1.3806]
[1744723191747,6.09607,1640.4,1640.3,0.8306]
[1744723191912,12.19239,1640.4,1640.2,0.81450149]
[1744723192112,6.09607,1640.4,1640.2,0.81450149]
[1744723192313,6.09607,1640.4,1640.2,1.49e-06]
[1744723192314,6.09644,1640.3,1640.2,1.49e-06]
[1744723192515,11.40571,1640.5,1640.2,0.81450149]
[1744723192814,11.40571,1640.5,1640.2,6.91123149]
[1744723193148,6.09534,1640.6,1640.3,6.64629]
[1744723194240,6.09572,1640.5,1640.3,0.55]
[1744723194437,6.09607,1640.4,1640.3,0.55]
[1744723194646,12.19164,1640.5,1640.3,0.55]
[1744723195125,6.09572,1640.5,1640.3,0.55]
[1744723195457,6.09607,1640.4,1640.3,0.55]
[1744723196147,6.09607,1640.4,1640.2,0.81450149]
[1744723196723,12.1925,1640.4,1640.2,0.81450149]
[1744723198645,12.19234,1640.4,1640.2,0.81450149]
[1744723198851,6.09607,1640.4,1640.2,0.81450149]
[1744723199153,12.1924,1640.4,1640.2,0.81450149]
[1744723199520,6.09644,1640.3,1640.2,0.81450149]
[1744723200354,12.1925,1640.4,1640.2,0.81450149]
[1744723200654,6.09607,1640.4,1640.2,0.81450149]
[1744723201551,6.09574,1640.5,1640.2,6.91122149]
[1744723201858,18.24096,1640.6,1640.3,6.64633]
[1744723202453,6.09607,1640.4,1640.2,1.53868516]
[1744723202621,12.19231,1640.4,1640.2,1.53868516]
[1744723202959,12.19231,1640.4,1640.2,0.55000149]
[1744723203453,6.09607,1640.4,1640.2,0.55000149]
[1744723204751,12.19165,1640.5,1640.2,6.64679149]
[1744723205056,6.09608,1640.4,1640.2,6.64679149]
[1744723206249,5.31,1640.7,1640.5,6.0956]
[1744723206485,11.40507,1640.7,1640.4,6.64601]
[1744723206662,12.19038,1640.7,1640.4,6.64601]
[1744723207177,6.09507,1640.7,1640.4,6.64595]
[1744723207520,6.09507,1640.7,1640.4,12.7419]
[1744723207737,6.09423,1640.9,1640.4,1.90111]
[1744723207972,6.09423,1640.9,1640.6,6.09516]
[1744723208170,12.18874,1640.9,1640.6,6.09516]
[1744723209982,6.09423,1640.9,1640.6,6.09516]
[1744723210274,17.49804,1641.0,1640.7,0.8312]
[1744723211194,64.51958252,1641.2,1640.8,6.64424]
[1744723211195,63.82166357,1641.2,1640.8,6.64424]
[1744723211527,4.08999357,1641.2,1640.9,6.85831]
[1744723211648,4.08999357,1641.2,1641.0,6.09373]
[1744723211858,4.08999357,1641.2,1641.0,7.388934]
[1744723212383,4.08999357,1641.2,1641.0,13.482644]
[1744723212671,18.23494,1641.4,1641.1,7.41637]
[1744723212834,12.14243,1641.4,1641.1,7.41637]
[1744723213039,4.08999357,1641.5,1641.4,0.7729]
[1744723214769,6.09273,1641.3,1641.2,0.7644]
[1744723214972,6.0931,1641.2,1641.1,1.3276]
[1744723215170,12.18577,1641.3,1641.1,1.3276]
[1744723215377,6.09354,1641.1,1640.9,0.7776]
[1744723215667,6.09354,1641.1,1641.0,0.55]
[1744723215968,12.18635,1641.2,1641.0,0.55]
[1744723216169,12.18647,1641.2,1641.0,0.55]
[1744723216576,6.0931,1641.2,1641.0,0.55]
[1744723216777,6.09252,1641.4,1641.1,6.90372]
[1744723216948,6.09274,1641.3,1641.0,8.164821]
[1744723217572,6.09274,1641.3,1641.0,8.164771]
[1744723217874,6.09199,1641.5,1641.2,6.64298]
[1744723218049,12.18433,1641.5,1641.2,0.55]
[1744723218249,6.0925,1641.4,1641.1,0.7789]
[1744723218572,6.09263,1641.4,1641.1,0.7789]
[1744723218892,19.19767215,1641.6,1641.3,0.55]
[1744723218893,6.05,1641.6,1641.3,0.55]
[1744723219043,6.05,1641.6,1641.3,12.73522]
[1744723219044,12.14176,1641.6,1641.3,12.73522]
[1744723219239,18.23353,1641.6,1641.3,7.996142]
[1744723219444,12.14176,1641.6,1641.3,7.996142]
[1744723219940,12.14176,1641.6,1641.3,14.088732]
[1744723220142,12.18276,1641.7,1641.4,0.8119]
[1744723220371,6.05,1642.0,1641.7,0.8119]
[1744723220584,12.14025,1642.0,1641.7,6.90302]
[1744723220791,18.23055,1642.0,1641.7,0.8119]
[1744723221587,6.0891,1642.3,1642.0,0.8021]
[1744723221976,6.08959,1642.2,1642.0,0.8021]
[1744723222289,6.81876,1642.1,1641.6,0.764]
[1744723222459,6.09124,1641.7,1641.6,0.764]
[1744723222662,6.09174,1641.6,1641.4,0.8225]
[1744723224192,12.18366,1641.6,1641.4,0.8225]
[1744723224492,6.09198,1641.5,1641.2,6.1171]
[1744723224694,6.09198,1641.5,1641.3,0.55]
[1744723224893,6.09347,1641.1,1641.0,0.8121]
[1744723225080,6.09347,1641.1,1640.8,0.7964]
[1744723225308,6.09347,1641.1,1640.8,1.485533]
[1744723225668,6.09347,1641.1,1640.8,7.580093]
[1744723226810,6.09347,1641.1,1640.9,0.15501125]
[1744723227823,5.305,1641.3,1640.9,0.15501125]
[1744723227981,12.1424,1641.4,1641.1,0.8242]
[1744723228318,12.1424,1641.4,1641.1,6.91766]
[1744723229398,12.18417,1641.5,1641.1,13.01097]
[1744723230295,6.09353,1641.1,1640.9,0.15501125]
[1744723230499,6.09346,1641.2,1640.9,0.15501125]
[1744723230871,6.09353,1641.1,1640.9,0.15501125]
[1744723231971,6.09384,1641.0,1640.9,0.15501125]
[1744723233936,6.82284,1641.0,1640.9,0.15501125]
[1744723237230,13.24410087,1641.0,1640.9,0.15501125]
[1744723237386,0.729,1641.0,1640.9,0.15501125]
[1744723237591,6.82284,1641.0,1640.9,0.15501125]
[1744723238086,13.24410087,1641.0,1640.9,0.15501125]
[1744723238992,6.82284,1641.0,1640.9,0.15501125]
[1744723239742,13.24410087,1641.0,1640.9,0.15501125]
[1744723241107,6.09384,1641.0,1640.9,0.15501125]
[1744723242833,6.09353,1641.1,1640.9,0.15501125]
[1744723243550,17.44822,1641.2,1641.0,0.7555]
[1744723243752,23.54148,1641.2,1641.0,1.45596013]
[1744723244114,23.54148,1641.2,1641.0,0.7555]
[1744723244955,17.44822,1641.2,1641.0,0.7555]